[Event "*** Titled Tuesday Blitz"]
[Site "Chess.com"]
[Date "2020.11.03"]
[Round "2"]
[White "Igor_Lysyj"]
[Black "lelajavakhishvili"]
[Result "1-0"]
[WhiteElo "2816"]
[BlackElo "2534"]
[TimeControl "180+1"]
[EndTime "10:20:03 PST"]
[Termination "Igor_Lysyj won on time"]

1. d4 {[%clk 0:03:00.9]} 1... Nf6 {[%clk 0:02:59]} 2. Nf3 {[%clk 0:02:58.1]}
2... d6 {[%clk 0:02:55.2]} 3. c4 {[%clk 0:02:57]} 3... g6 {[%clk 0:02:54.3]} 4.
Nc3 {[%clk 0:02:56.3]} 4... Bf5 {[%clk 0:02:49.8]} 5. d5 {[%clk 0:02:55.7]} 5...
Bg7 {[%clk 0:02:45.3]} 6. Nd4 {[%clk 0:02:55.4]} 6... Bd7 {[%clk 0:02:45.1]} 7.
e4 {[%clk 0:02:55.1]} 7... O-O {[%clk 0:02:44.7]} 8. Be2 {[%clk 0:02:53.5]} 8...
c5 {[%clk 0:02:44.6]} 9. Nf3 {[%clk 0:02:48.7]} 9... e6 {[%clk 0:02:40.7]} 10.
O-O {[%clk 0:02:47.7]} 10... exd5 {[%clk 0:02:40.9]} 11. exd5 {[%clk 0:02:47.8]}
11... Bf5 {[%clk 0:02:36.8]} 12. Nh4 {[%clk 0:02:44.1]} 12... Ne4 {[%clk
0:02:22.6]} 13. Nxf5 {[%clk 0:02:36.5]} 13... Nxc3 {[%clk 0:02:20.3]} 14. bxc3
{[%clk 0:02:34.6]} 14... gxf5 {[%clk 0:02:21.2]} 15. Rb1 {[%clk 0:02:28]} 15...
Nd7 {[%clk 0:02:07.4]} 16. Rxb7 {[%clk 0:02:16.4]} 16... Nb6 {[%clk 0:02:00.7]}
17. Bd3 {[%clk 0:02:16.3]} 17... Qf6 {[%clk 0:01:13.7]} 18. Qh5 {[%clk
0:02:08.1]} 18... Qg6 {[%clk 0:01:03.6]} 19. Qf3 {[%clk 0:01:57.9]} 19... Qf6
{[%clk 0:00:56.7]} 20. Qh3 {[%clk 0:01:45.2]} 20... h6 {[%clk 0:00:51.6]} 21.
Bxf5 {[%clk 0:01:31.2]} 21... Nxc4 {[%clk 0:00:48.9]} 22. Bc2 {[%clk 0:01:30]}
22... Nb6 {[%clk 0:00:45.9]} 23. c4 {[%clk 0:01:20.5]} 23... Rfb8 {[%clk
0:00:35.1]} 24. Rxb8+ {[%clk 0:01:15.1]} 24... Rxb8 {[%clk 0:00:35.3]} 25. Qd3
{[%clk 0:01:12.5]} 25... Kf8 {[%clk 0:00:30.8]} 26. Re1 {[%clk 0:01:09.2]} 26...
Re8 {[%clk 0:00:24]} 27. Be3 {[%clk 0:00:57.8]} 27... Re5 {[%clk 0:00:18.1]} 28.
h3 {[%clk 0:00:55.5]} 28... Qe7 {[%clk 0:00:17.6]} 29. a4 {[%clk 0:00:51.6]}
29... Nd7 {[%clk 0:00:15.1]} 30. Rb1 {[%clk 0:00:50.2]} 30... Qd8 {[%clk
0:00:12.8]} 31. Rb7 {[%clk 0:00:47.4]} 31... a5 {[%clk 0:00:10.2]} 32. g3 {[%clk
0:00:44.7]} 32... Qc8 {[%clk 0:00:09.5]} 33. Rb5 {[%clk 0:00:40.9]} 33... Qc7
{[%clk 0:00:08.4]} 34. Kg2 {[%clk 0:00:40.2]} 34... Re8 {[%clk 0:00:08.3]} 35.
Bf4 {[%clk 0:00:37.4]} 35... Ne5 {[%clk 0:00:08.2]} 36. Qb3 {[%clk 0:00:37.4]}
36... Qe7 {[%clk 0:00:06.5]} 37. Rxa5 {[%clk 0:00:33.1]} 37... Qf6 {[%clk
0:00:05.4]} 38. Rb5 {[%clk 0:00:32.5]} 38... Ng6 {[%clk 0:00:05.6]} 39. Bxg6
{[%clk 0:00:31.4]} 39... Qxg6 {[%clk 0:00:05.6]} 40. Qf3 {[%clk 0:00:27.6]}
40... Kg8 {[%clk 0:00:05.2]} 41. Rb7 {[%clk 0:00:27.1]} 41... Ra8 {[%clk
0:00:04.6]} 42. Bxd6 {[%clk 0:00:23.3]} 42... Rxa4 {[%clk 0:00:03.1]} 43. Bxc5
{[%clk 0:00:22.3]} 43... Rxc4 {[%clk 0:00:02.3]} 44. Be3 {[%clk 0:00:21.7]}
44... Qe4 {[%clk 0:00:01.8]} 45. Qxe4 {[%clk 0:00:20.1]} 45... Rxe4 {[%clk
0:00:01.6]} 46. Rb8+ {[%clk 0:00:20.3]} 46... Kh7 {[%clk 0:00:01.5]} 47. Rb3
{[%clk 0:00:20.8]} 47... Re5 {[%clk 0:00:01.2]} 48. Rd3 {[%clk 0:00:21.2]} 48...
Re7 {[%clk 0:00:01.6]} 49. d6 {[%clk 0:00:21.2]} 49... Rd7 {[%clk 0:00:02.5]}
50. Bf4 {[%clk 0:00:21.2]} 50... Bf8 {[%clk 0:00:02.8]} 51. Kf3 {[%clk
0:00:21.6]} 51... Kg6 {[%clk 0:00:03.7]} 52. Ke4 {[%clk 0:00:21.6]} 52... Kf6
{[%clk 0:00:03.9]} 53. Kd5 {[%clk 0:00:21.8]} 53... Rd8 {[%clk 0:00:03.6]} 54.
Be5+ {[%clk 0:00:21.5]} 54... Kf5 {[%clk 0:00:03]} 55. Rf3+ {[%clk 0:00:20.7]}
55... Kg6 {[%clk 0:00:03]} 56. Rf6+ {[%clk 0:00:20.3]} 56... Kg7 {[%clk
0:00:03.6]} 57. f4 {[%clk 0:00:19.1]} 57... Ra8 {[%clk 0:00:02.4]} 58. d7 {[%clk
0:00:18.5]} 58... Ra5+ {[%clk 0:00:02.1]} 59. Ke4 {[%clk 0:00:18.4]} 59... Ra8
{[%clk 0:00:01.5]} 60. Rc6+ {[%clk 0:00:17.6]} 1-0

[Event "*** Titled Tuesday Blitz"]
[Site "Chess.com"]
[Date "2020.11.03"]
[Round "2"]
[White "dopolian"]
[Black "Klavdia_Nik"]
[Result "1-0"]
[WhiteElo "2381"]
[BlackElo "2071"]
[TimeControl "180+1"]
[EndTime "10:20:03 PST"]
[Termination "dopolian won on time"]

1. e4 {[%clk 0:03:00.9]} 1... e6 {[%clk 0:02:56.7]} 2. d4 {[%clk 0:02:59.5]}
2... d5 {[%clk 0:02:57]} 3. Nd2 {[%clk 0:02:59.6]} 3... dxe4 {[%clk 0:02:56.2]}
4. Nxe4 {[%clk 0:03:00.5]} 4... Bd7 {[%clk 0:02:56.5]} 5. Nf3 {[%clk 0:02:56.7]}
5... Bc6 {[%clk 0:02:57]} 6. Bd3 {[%clk 0:02:57.4]} 6... Nd7 {[%clk 0:02:55.5]}
7. O-O {[%clk 0:02:57.1]} 7... Ngf6 {[%clk 0:02:54.6]} 8. Nxf6+ {[%clk 0:02:57]}
8... Nxf6 {[%clk 0:02:53.8]} 9. Ne5 {[%clk 0:02:41.7]} 9... Qxd4 {[%clk
0:02:37.9]} 10. Nxc6 {[%clk 0:02:41.2]} 10... bxc6 {[%clk 0:02:36.2]} 11. Qf3
{[%clk 0:02:40.8]} 11... Qd5 {[%clk 0:02:34.8]} 12. Qe2 {[%clk 0:02:28]} 12...
Bd6 {[%clk 0:02:22.3]} 13. Rd1 {[%clk 0:02:25]} 13... Qh5 {[%clk 0:02:20.2]} 14.
Qxh5 {[%clk 0:02:20.8]} 14... Nxh5 {[%clk 0:02:18]} 15. Be4 {[%clk 0:02:20.1]}
15... Kd7 {[%clk 0:02:10.1]} 16. c4 {[%clk 0:02:19.1]} 16... Nf6 {[%clk
0:02:02.6]} 17. Bf3 {[%clk 0:02:18.5]} 17... c5 {[%clk 0:01:54.7]} 18. Bxa8
{[%clk 0:02:17]} 18... Rxa8 {[%clk 0:01:55.3]} 19. Be3 {[%clk 0:02:09.7]} 19...
Kc6 {[%clk 0:01:54.7]} 20. f3 {[%clk 0:02:08]} 20... Rb8 {[%clk 0:01:53.4]} 21.
b3 {[%clk 0:02:07.5]} 21... Nd7 {[%clk 0:01:39.5]} 22. Rd2 {[%clk 0:02:05.1]}
22... a5 {[%clk 0:01:36.2]} 23. Kf2 {[%clk 0:02:02.6]} 23... a4 {[%clk
0:01:31.5]} 24. Rd3 {[%clk 0:02:01.6]} 24... axb3 {[%clk 0:01:29.9]} 25. axb3
{[%clk 0:02:01.7]} 25... Ne5 {[%clk 0:01:17.6]} 26. Rc3 {[%clk 0:01:59.1]} 26...
h5 {[%clk 0:01:08.7]} 27. Ra6+ {[%clk 0:01:51.4]} 27... Kd7 {[%clk 0:01:07.1]}
28. h3 {[%clk 0:01:46.8]} 28... Nc6 {[%clk 0:00:59.1]} 29. f4 {[%clk 0:01:34.9]}
29... g6 {[%clk 0:00:48.3]} 30. Kf3 {[%clk 0:01:00]} 30... Nb4 {[%clk 0:00:35]}
31. Ra5 {[%clk 0:00:48.2]} 31... Kc6 {[%clk 0:00:33.7]} 32. Rc1 {[%clk
0:00:36.9]} 32... Nd3 {[%clk 0:00:31.8]} 33. Rc3 {[%clk 0:00:33.3]} 33... Nb4
{[%clk 0:00:31]} 34. Ra1 {[%clk 0:00:27.8]} 34... Be7 {[%clk 0:00:24.7]} 35. Ra5
{[%clk 0:00:19.7]} 35... Rd8 {[%clk 0:00:15.6]} 36. Rc1 {[%clk 0:00:09.9]} 36...
Rd3 {[%clk 0:00:14.4]} 37. Ke2 {[%clk 0:00:04.3]} 37... Rxb3 {[%clk 0:00:13.6]}
38. Rb5 {[%clk 0:00:03.9]} 38... Rb2+ {[%clk 0:00:09.5]} 39. Kf3 {[%clk
0:00:04.2]} 39... Ra2 {[%clk 0:00:07.2]} 40. Rb8 {[%clk 0:00:02.8]} 40... Ra3
{[%clk 0:00:05.6]} 41. Re1 {[%clk 0:00:01.2]} 41... Nd3 {[%clk 0:00:05.3]} 42.
Re2 {[%clk 0:00:01.4]} 42... Bd6 {[%clk 0:00:05]} 43. Rd2 {[%clk 0:00:01.9]}
43... Nxf4 {[%clk 0:00:03.7]} 44. Rd8 {[%clk 0:00:02]} 44... Nd3 {[%clk
0:00:02]} 45. Rxd6+ {[%clk 0:00:01.8]} 45... cxd6 {[%clk 0:00:01.6]} 46. Ke2
{[%clk 0:00:02.3]} 46... Ne5 {[%clk 0:00:01.7]} 47. Rc2 {[%clk 0:00:02.1]} 47...
Ra4 {[%clk 0:00:01]} 48. Bf4 {[%clk 0:00:01.6]} 48... Nxc4 {[%clk 0:00:01.1]}
49. Bg3 {[%clk 0:00:01.6]} 49... e5 {[%clk 0:00:01.7]} 50. Bf2 {[%clk
0:00:02.1]} 50... f5 {[%clk 0:00:02]} 51. g4 {[%clk 0:00:01.7]} 51... f4 {[%clk
0:00:01.6]} 52. gxh5 {[%clk 0:00:01.5]} 52... gxh5 {[%clk 0:00:02.3]} 53. Bh4
{[%clk 0:00:02.3]} 53... Ra3 {[%clk 0:00:01.5]} 54. Be7 {[%clk 0:00:02.6]} 54...
Rxh3 {[%clk 0:00:02]} 55. Rxc4 {[%clk 0:00:02.9]} 1-0

[Event "*** Titled Tuesday Blitz"]
[Site "Chess.com"]
[Date "2020.11.03"]
[Round "2"]
[White "FairChess_on_YouTube"]
[Black "WPWPWP-2015"]
[Result "1-0"]
[WhiteElo "2983"]
[BlackElo "2466"]
[TimeControl "180+1"]
[EndTime "10:20:05 PST"]
[Termination "FairChess_on_YouTube won on time"]

1. e4 {[%clk 0:03:00.9]} 1... e5 {[%clk 0:02:50.2]} 2. Nf3 {[%clk 0:03:00.3]}
2... Nc6 {[%clk 0:02:49.6]} 3. Bb5 {[%clk 0:02:58.6]} 3... Nf6 {[%clk
0:02:49.1]} 4. O-O {[%clk 0:02:48.9]} 4... Nxe4 {[%clk 0:02:47.5]} 5. d4 {[%clk
0:02:45.2]} 5... Nd6 {[%clk 0:02:47]} 6. dxe5 {[%clk 0:02:37.8]} 6... Nxb5
{[%clk 0:02:46.2]} 7. a4 {[%clk 0:02:37.9]} 7... Nbd4 {[%clk 0:02:46]} 8. Nxd4
{[%clk 0:02:37.4]} 8... d5 {[%clk 0:02:42.3]} 9. exd6 {[%clk 0:02:32.6]} 9...
Bxd6 {[%clk 0:02:41.8]} 10. Nb5 {[%clk 0:02:31]} 10... Be5 {[%clk 0:02:40.9]}
11. Qxd8+ {[%clk 0:02:16.3]} 11... Kxd8 {[%clk 0:02:40.3]} 12. Rd1+ {[%clk
0:02:12.8]} 12... Bd7 {[%clk 0:02:40.2]} 13. N1c3 {[%clk 0:02:00.7]} 13... Kc8
{[%clk 0:02:24.9]} 14. Be3 {[%clk 0:01:48.5]} 14... Rd8 {[%clk 0:02:17.4]} 15.
h3 {[%clk 0:01:34.9]} 15... a6 {[%clk 0:02:08.1]} 16. Nd4 {[%clk 0:01:33.8]}
16... Nxd4 {[%clk 0:01:37.3]} 17. Bxd4 {[%clk 0:01:34.7]} 17... Bxd4 {[%clk
0:01:36.7]} 18. Rxd4 {[%clk 0:01:34.8]} 18... Be6 {[%clk 0:01:35.7]} 19. Rad1
{[%clk 0:01:31.9]} 19... Rxd4 {[%clk 0:01:32.9]} 20. Rxd4 {[%clk 0:01:32.8]}
20... c6 {[%clk 0:01:26.3]} 21. a5 {[%clk 0:01:28.3]} 21... Kc7 {[%clk
0:01:25.1]} 22. Na4 {[%clk 0:01:26.3]} 22... Bf5 {[%clk 0:01:11.2]} 23. c3
{[%clk 0:01:22.4]} 23... Re8 {[%clk 0:01:09.4]} 24. Kf1 {[%clk 0:01:17.3]} 24...
Re5 {[%clk 0:00:56.1]} 25. b4 {[%clk 0:01:15.4]} 25... h5 {[%clk 0:00:47.9]} 26.
h4 {[%clk 0:01:07]} 26... f6 {[%clk 0:00:43.6]} 27. Nc5 {[%clk 0:01:03.7]} 27...
g5 {[%clk 0:00:27.9]} 28. f4 {[%clk 0:00:50.9]} 28... Re3 {[%clk 0:00:23.4]} 29.
fxg5 {[%clk 0:00:45.6]} 29... fxg5 {[%clk 0:00:23.3]} 30. hxg5 {[%clk
0:00:46.5]} 30... Rg3 {[%clk 0:00:23.1]} 31. Kf2 {[%clk 0:00:31.6]} 31... Rxg5
{[%clk 0:00:22.8]} 32. Rf4 {[%clk 0:00:30.6]} 32... b6 {[%clk 0:00:19]} 33.
axb6+ {[%clk 0:00:21.4]} 33... Kxb6 {[%clk 0:00:19.9]} 34. Nb3 {[%clk 0:00:21]}
34... Be6 {[%clk 0:00:18.2]} 35. Nd4 {[%clk 0:00:19]} 35... Bd5 {[%clk
0:00:17.7]} 36. g3 {[%clk 0:00:19.4]} 36... a5 {[%clk 0:00:15.9]} 37. bxa5+
{[%clk 0:00:18.8]} 37... Kxa5 {[%clk 0:00:16.2]} 38. Rf6 {[%clk 0:00:18.7]}
38... Kb6 {[%clk 0:00:15.5]} 39. c4 {[%clk 0:00:18.3]} 39... Be4 {[%clk
0:00:10.3]} 40. Re6 {[%clk 0:00:15.2]} 40... Bh1 {[%clk 0:00:09.1]} 41. Re1
{[%clk 0:00:12.9]} 41... h4 {[%clk 0:00:05.1]} 42. Rxh1 {[%clk 0:00:09.4]} 42...
hxg3+ {[%clk 0:00:05.1]} 43. Kg2 {[%clk 0:00:09.7]} 43... Rg4 {[%clk 0:00:04.9]}
44. Rd1 {[%clk 0:00:06.2]} 44... Kc5 {[%clk 0:00:04.7]} 45. Ne6+ {[%clk
0:00:06.1]} 45... Kxc4 {[%clk 0:00:04.9]} 46. Kf3 {[%clk 0:00:05.8]} 46... Rg6
{[%clk 0:00:04.5]} 47. Rc1+ {[%clk 0:00:06]} 47... Kb5 {[%clk 0:00:04]} 48. Nf4
{[%clk 0:00:04.9]} 48... Rg8 {[%clk 0:00:03.3]} 49. Kg2 {[%clk 0:00:04.2]} 49...
Kb6 {[%clk 0:00:03.2]} 50. Ne2 {[%clk 0:00:03.9]} 50... c5 {[%clk 0:00:02.7]}
51. Nxg3 {[%clk 0:00:04.3]} 51... Kb5 {[%clk 0:00:03]} 52. Kf3 {[%clk
0:00:04.7]} 52... Kb4 {[%clk 0:00:02.8]} 53. Ne4 {[%clk 0:00:05.1]} 53... c4
{[%clk 0:00:03]} 54. Rb1+ {[%clk 0:00:05.4]} 54... Ka3 {[%clk 0:00:02.8]} 55.
Ke3 {[%clk 0:00:05.6]} 55... c3 {[%clk 0:00:01.4]} 56. Kd3 {[%clk 0:00:03.7]}
1-0

[Event "*** Titled Tuesday Blitz"]
[Site "Chess.com"]
[Date "2020.11.03"]
[Round "2"]
[White "PaulfromSPb"]
[Black "dragos420"]
[Result "0-1"]
[WhiteElo "2703"]
[BlackElo "2500"]
[TimeControl "180+1"]
[EndTime "10:20:06 PST"]
[Termination "dragos420 won on time"]

1. d4 {[%clk 0:03:00.9]} 1... Nf6 {[%clk 0:02:57.6]} 2. Bf4 {[%clk 0:03:00.1]}
2... e6 {[%clk 0:02:49.8]} 3. e3 {[%clk 0:02:58.7]} 3... c5 {[%clk 0:02:42.8]}
4. Nd2 {[%clk 0:02:56.5]} 4... a6 {[%clk 0:02:40.1]} 5. c3 {[%clk 0:02:56]} 5...
d5 {[%clk 0:02:39.7]} 6. Ngf3 {[%clk 0:02:55]} 6... Qb6 {[%clk 0:02:37.2]} 7.
Rb1 {[%clk 0:02:52.4]} 7... Bd7 {[%clk 0:02:35.7]} 8. Ne5 {[%clk 0:02:45]} 8...
Bb5 {[%clk 0:02:26.5]} 9. Qb3 {[%clk 0:02:43.8]} 9... Nbd7 {[%clk 0:02:24.5]}
10. c4 {[%clk 0:02:27.3]} 10... dxc4 {[%clk 0:02:19]} 11. Ndxc4 {[%clk
0:02:22.9]} 11... Bxc4 {[%clk 0:02:10.7]} 12. Qxb6 {[%clk 0:02:08]} 12... Nxb6
{[%clk 0:02:11.6]} 13. Nxc4 {[%clk 0:02:07.7]} 13... Nxc4 {[%clk 0:02:10]} 14.
Bxc4 {[%clk 0:02:08.6]} 14... cxd4 {[%clk 0:02:10.2]} 15. exd4 {[%clk
0:02:09.5]} 15... Bb4+ {[%clk 0:02:04.3]} 16. Ke2 {[%clk 0:02:09.5]} 16... O-O
{[%clk 0:01:58.1]} 17. a3 {[%clk 0:02:08.7]} 17... Be7 {[%clk 0:01:56.1]} 18.
Rbc1 {[%clk 0:02:06]} 18... Rac8 {[%clk 0:01:54.7]} 19. Bb3 {[%clk 0:02:03.7]}
19... Rfd8 {[%clk 0:01:53.4]} 20. Rxc8 {[%clk 0:02:03]} 20... Rxc8 {[%clk
0:01:54.3]} 21. Rd1 {[%clk 0:02:03.1]} 21... Nd5 {[%clk 0:01:51.5]} 22. Bd2
{[%clk 0:02:00.7]} 22... Bf6 {[%clk 0:01:48.3]} 23. Kd3 {[%clk 0:02:00.8]} 23...
Kf8 {[%clk 0:01:45.6]} 24. Ke4 {[%clk 0:02:00.4]} 24... Ke7 {[%clk 0:01:27.4]}
25. g4 {[%clk 0:01:52.7]} 25... Kd6 {[%clk 0:01:23]} 26. f4 {[%clk 0:01:46.4]}
26... g6 {[%clk 0:01:13.9]} 27. Rf1 {[%clk 0:01:35.8]} 27... Be7 {[%clk
0:01:01.7]} 28. h3 {[%clk 0:01:31.2]} 28... f5+ {[%clk 0:01:00.1]} 29. Kd3
{[%clk 0:01:30.3]} 29... Bf6 {[%clk 0:00:53.2]} 30. Re1 {[%clk 0:01:21.3]} 30...
Rc6 {[%clk 0:00:45.8]} 31. Ba2 {[%clk 0:01:16]} 31... Rb6 {[%clk 0:00:43.8]} 32.
Rb1 {[%clk 0:01:13]} 32... Rc6 {[%clk 0:00:36.7]} 33. b4 {[%clk 0:01:05.5]}
33... b5 {[%clk 0:00:34.1]} 34. Bb3 {[%clk 0:01:02.7]} 34... Nb6 {[%clk
0:00:33.1]} 35. Re1 {[%clk 0:00:59.7]} 35... Nc4 {[%clk 0:00:30.5]} 36. Bc1
{[%clk 0:00:59.8]} 36... Kd5 {[%clk 0:00:26.5]} 37. Bb2 {[%clk 0:00:54.1]} 37...
Kd6 {[%clk 0:00:26.8]} 38. Bc1 {[%clk 0:00:48.4]} 38... Kd5 {[%clk 0:00:26.2]}
39. Rd1 {[%clk 0:00:43.7]} 39... Bxd4 {[%clk 0:00:21.1]} 40. Ke2 {[%clk
0:00:43.6]} 40... e5 {[%clk 0:00:02.3]} 41. Bb2 {[%clk 0:00:40]} 41... Rd6
{[%clk 0:00:02.7]} 42. fxe5 {[%clk 0:00:33.2]} 42... Kxe5 {[%clk 0:00:03.1]} 43.
Bc1 {[%clk 0:00:34.1]} 43... Kd5 {[%clk 0:00:03.1]} 44. Bf4 {[%clk 0:00:30]}
44... Re6+ {[%clk 0:00:03.2]} 45. Kf3 {[%clk 0:00:28.4]} 45... Re4 {[%clk
0:00:04.1]} 46. Bc2 {[%clk 0:00:26.6]} 46... Re8 {[%clk 0:00:04.2]} 47. gxf5
{[%clk 0:00:26.6]} 47... gxf5 {[%clk 0:00:05.1]} 48. Bxf5 {[%clk 0:00:26.6]}
48... Nb2 {[%clk 0:00:05.6]} 49. Rc1 {[%clk 0:00:18]} 49... Bg7 {[%clk
0:00:03.9]} 50. Bxh7 {[%clk 0:00:17.1]} 50... Rf8 {[%clk 0:00:03.6]} 51. Be4+
{[%clk 0:00:15.7]} 51... Kd4 {[%clk 0:00:03.5]} 52. Rc2 {[%clk 0:00:04.8]} 52...
Nc4 {[%clk 0:00:03.2]} 53. Bg6 {[%clk 0:00:02.7]} 53... Bh6 {[%clk 0:00:03.2]}
54. Kg4 {[%clk 0:00:02.7]} 54... Rxf4+ {[%clk 0:00:03.3]} 55. Kh5 {[%clk
0:00:03.1]} 55... Bg7 {[%clk 0:00:03.9]} 56. Be8 {[%clk 0:00:02.2]} 56... Bf6
{[%clk 0:00:04.3]} 57. Bc6 {[%clk 0:00:02.2]} 57... Ne5 {[%clk 0:00:04.3]} 0-1

[Event "*** Titled Tuesday Blitz"]
[Site "Chess.com"]
[Date "2020.11.03"]
[Round "2"]
[White "Eliwood44"]
[Black "Shubinkirill2003"]
[Result "0-1"]
[WhiteElo "2449"]
[BlackElo "2696"]
[TimeControl "180+1"]
[EndTime "10:20:06 PST"]
[Termination "Shubinkirill2003 won by resignation"]

1. d4 {[%clk 0:03:00.9]} 1... e6 {[%clk 0:02:59.8]} 2. Nf3 {[%clk 0:03:00.5]}
2... Nf6 {[%clk 0:02:59.7]} 3. e3 {[%clk 0:03:00]} 3... b6 {[%clk 0:02:59.2]} 4.
Bd3 {[%clk 0:02:59.5]} 4... Bb7 {[%clk 0:02:59.3]} 5. O-O {[%clk 0:02:59]} 5...
d5 {[%clk 0:02:59.8]} 6. c4 {[%clk 0:02:59]} 6... Bd6 {[%clk 0:02:59.4]} 7. Nc3
{[%clk 0:02:59]} 7... a6 {[%clk 0:02:58.7]} 8. cxd5 {[%clk 0:02:57.2]} 8... exd5
{[%clk 0:02:58.4]} 9. Ne5 {[%clk 0:02:55.7]} 9... O-O {[%clk 0:02:56]} 10. f4
{[%clk 0:02:53.5]} 10... Nbd7 {[%clk 0:02:55.5]} 11. Qf3 {[%clk 0:02:51.2]}
11... c5 {[%clk 0:02:52.9]} 12. Qh3 {[%clk 0:02:49.8]} 12... b5 {[%clk
0:02:30.5]} 13. Nxd7 {[%clk 0:02:49.3]} 13... g6 {[%clk 0:02:14.3]} 14. Nxf6+
{[%clk 0:02:40.3]} 14... Qxf6 {[%clk 0:02:15.2]} 15. Ne2 {[%clk 0:02:26.3]}
15... Rfe8 {[%clk 0:02:12.2]} 16. Bd2 {[%clk 0:02:21.4]} 16... c4 {[%clk
0:02:10.8]} 17. Bc2 {[%clk 0:02:16.6]} 17... b4 {[%clk 0:02:07.4]} 18. f5 {[%clk
0:02:09.1]} 18... g5 {[%clk 0:02:07]} 19. Ng3 {[%clk 0:02:06.4]} 19... c3 {[%clk
0:01:56.5]} 20. Nh5 {[%clk 0:01:58.5]} 20... Qh6 {[%clk 0:01:55.5]} 21. bxc3
{[%clk 0:01:54.3]} 21... bxc3 {[%clk 0:01:55.4]} 22. Bc1 {[%clk 0:01:51.3]}
22... Kh8 {[%clk 0:01:45.9]} 23. Rb1 {[%clk 0:01:47]} 23... Bc6 {[%clk 0:01:43]}
24. f6 {[%clk 0:01:34.6]} 24... Bb5 {[%clk 0:01:33.2]} 25. Re1 {[%clk
0:01:25.2]} 25... Re6 {[%clk 0:01:14.8]} 26. a4 {[%clk 0:01:21.2]} 26... Bc4
{[%clk 0:01:08.5]} 27. Bf5 {[%clk 0:01:18.9]} 27... Ree8 {[%clk 0:00:59.3]} 28.
Rb7 {[%clk 0:01:17.5]} 28... Rf8 {[%clk 0:00:50.7]} 29. Ng3 {[%clk 0:01:11.9]}
29... Qxh3 {[%clk 0:00:49.9]} 30. Bxh3 {[%clk 0:01:11.2]} 30... Rab8 {[%clk
0:00:49.3]} 31. Rd7 {[%clk 0:01:07.8]} 31... Bb4 {[%clk 0:00:41.6]} 32. Bf5
{[%clk 0:00:18.2]} 32... Rb6 {[%clk 0:00:38.9]} 33. Bc2 {[%clk 0:00:16.1]} 33...
Rxf6 {[%clk 0:00:36.1]} 34. e4 {[%clk 0:00:15.7]} 34... dxe4 {[%clk 0:00:29.6]}
35. Nxe4 {[%clk 0:00:16.6]} 35... Re8 {[%clk 0:00:23.2]} 36. Bxg5 {[%clk
0:00:11.6]} 36... Rg6 {[%clk 0:00:13.9]} 37. h4 {[%clk 0:00:09.9]} 37... f5
{[%clk 0:00:12.1]} 38. Nf6 {[%clk 0:00:05.3]} 38... Rxe1+ {[%clk 0:00:11.2]} 39.
Kh2 {[%clk 0:00:05.5]} 39... Re7 {[%clk 0:00:07.8]} 40. Rd8+ {[%clk 0:00:05.1]}
40... Kg7 {[%clk 0:00:07.7]} 41. Bxf5 {[%clk 0:00:03.8]} 41... Rxf6 {[%clk
0:00:07.1]} 42. Bxf6+ {[%clk 0:00:04.7]} 42... Kxf6 {[%clk 0:00:08]} 43. Bc2
{[%clk 0:00:04]} 43... Bd6+ {[%clk 0:00:07.7]} 44. Rxd6+ {[%clk 0:00:02.9]}
44... Kf7 {[%clk 0:00:08.6]} 45. Rc6 {[%clk 0:00:03.6]} 45... Re2 {[%clk
0:00:08]} 46. Rxc4 {[%clk 0:00:02.4]} 46... Rxc2 {[%clk 0:00:08.2]} 47. d5
{[%clk 0:00:03.3]} 47... Ke7 {[%clk 0:00:08.4]} 48. Rc6 {[%clk 0:00:02.6]} 48...
Kd7 {[%clk 0:00:08.1]} 49. Rc4 {[%clk 0:00:02]} 49... Kd6 {[%clk 0:00:08.2]} 50.
Rc8 {[%clk 0:00:01.6]} 50... Kxd5 {[%clk 0:00:08.4]} 51. Kh3 {[%clk 0:00:01.7]}
51... Kd4 {[%clk 0:00:08.1]} 52. g4 {[%clk 0:00:02.6]} 52... Rd2 {[%clk
0:00:06.8]} 53. g5 {[%clk 0:00:03.5]} 53... c2 {[%clk 0:00:06.3]} 54. h5 {[%clk
0:00:04.4]} 54... Kd3 {[%clk 0:00:06.6]} 55. Rxc2 {[%clk 0:00:04.2]} 55... Rxc2
{[%clk 0:00:05.7]} 56. g6 {[%clk 0:00:05.1]} 56... hxg6 {[%clk 0:00:05.6]} 57.
hxg6 {[%clk 0:00:05.2]} 57... Rc6 {[%clk 0:00:05.7]} 58. Kg4 {[%clk 0:00:06.1]}
58... Rxg6+ {[%clk 0:00:05.9]} 59. Kf5 {[%clk 0:00:06.8]} 59... Rb6 {[%clk
0:00:06.8]} 60. Ke5 {[%clk 0:00:06.6]} 60... Rb4 {[%clk 0:00:07]} 61. Kd6 {[%clk
0:00:07.5]} 61... Rxa4 {[%clk 0:00:07.5]} 0-1